[Event "14th Vandoeuvre Open 2018"]
[Site "?"]
[Date "2018.01.04"]
[Round "6"]
[White "Mergen, Bat"]
[Black "Steininger, Denis"]
[Result "1-0"]
[ECO "A46"]
[WhiteElo "1852"]
[BlackElo "1957"]
[PlyCount "117"]
[EventDate "2018.??.??"]
[EventType "swiss"]
[EventCountry "FRA"]
[SourceTitle "Vandoeuvre"]
[TimeControl "5400+30"]
[WhiteClock "1:01:15"]
[BlackClock "0:05:34"]

1. d4 {[%emt 0:01:24]} Nf6 {[%emt 0:00:00]} 2. Nf3 {[%emt 0:00:17]} d6 {[%emt 0:00:00]} 3. g3 {[%emt 0:00:48]} Bf5 {[%emt 0:00:00]} 4. Bg2 {[%emt 0:00:24]} c6 {[%emt 0:00:00]} 5. O-O {[%emt 0:00:21]} h6 {[%emt 0:00:17]} 6. c4 {[%emt 0:00:52]} g5 {[%emt 0:00:07]} 7. Nc3 {[%emt 0:00:26]} Bg7 {[%emt 0:00:13]} 8. Re1 {[%emt 0:00:35]} Nbd7 {[%emt 0:00:07]} 9. e4 {[%emt 0:01:46]} Bg4 {[%emt 0:00:04]} 10. h3 {[%emt 0:04:48]} Bxf3 {[%emt 0:00:07]} 11. Bxf3 {[%emt 0:00:45]} Qc7 {[%emt 0:00:08]} 12. b4 {[%emt 0:01:19]} c5 {[%emt 0:01:47]} 13. bxc5 {[%emt 0:01:58]} dxc5 {[%emt 0:00:09]} 14. Nb5 {[%emt 0:00:49]} Qb8 {[%emt 0:00:41]} 15. e5 {[%emt 0:01:27]} Nh7 {[%emt 0:00:13]} 16. e6 {[%emt 0:09:27]} fxe6 {[%emt 0:00:29]} 17. Bh5+ {[%emt 0:02:21]} Kd8 {[%emt 0:01:00]} 18. Bb2 {[%emt 0:06:39]} a6 {[%emt 0:00:09]} 19. Na3 {[%emt 0:00:15]} Qd6 {[%emt 0:00:24]} 20. Nc2 {[%emt 0:03:55]} Rc8 {[%emt 0:00:13]} 21. Bg4 {[%emt 0:00:38]} Nhf8 {[%emt 0:00:31]} 22. Rb1 {[%emt 0:01:50]} cxd4 {[%emt 0:00:23]} 23. Ba3 {[%emt 0:02:56]} Nc5 {[%emt 0:01:57]} 24. Rxb7 {[%emt 0:07:15]} Bf6 {[%emt 0:00:09]} 25. Qb1 {[%emt 0:02:04]} h5 {[%emt 0:01:36]} 26. Rb6 {[%emt 0:07:17]} Qc7 {[%emt 0:01:00]} 27. Bxc5 {[%emt 0:00:44]} Qxc5 {[%emt 0:00:05]} 28. Be2 {[%emt 0:09:15]} e5 {[%emt 0:02:20]} 29. Bd3 {[%emt 0:00:36]} a5 {[%emt 0:01:15]} 30. Rb5 {[%emt 0:02:06]} Qc7 {[%emt 0:00:01]} 31. Rb7 {[%emt 0:02:26]} Qc6 {[%emt 0:00:45]} 32. Na3 {[%emt 0:01:53]} Nd7 {[%emt 0:00:38]} 33. Bf5 {[%emt 0:01:44]} e6 {[%emt 0:00:16]} 34. Be4 {[%emt 0:00:22]} Qa4 {[%emt 0:02:07]} 35. Nb5 {[%emt 0:03:13]} Rc5 {[%emt 0:03:16]} 36. Rc7 {[%emt 0:09:26]} Rxc7 {[%emt 0:08:46]} 37. Nxc7 {[%emt 0:00:04]} Ke7 {[%emt 0:02:39]} 38. Qb5 {[%emt 0:02:42]} Qb4 {[%emt 0:01:30]} 39. Rb1 {[%emt 0:01:12]} Qxb5 {[%emt 0:01:49]} 40. cxb5 {[%emt 0:00:51]} Nc5 {[%emt 0:01:17]} 41. f3 {[%emt 0:02:00]} g4 {[%emt 0:00:48]} 42. hxg4 {[%emt 0:01:31]} hxg4 {[%emt 0:00:01]} 43. Na6 {[%emt 0:00:21]} Kd6 {[%emt 0:00:42]} 44. Nxc5 {[%emt 0:00:34]} Kxc5 {[%emt 0:00:08]} 45. b6 {[%emt 0:00:39]} gxf3 {[%emt 0:01:35]} 46. b7 {[%emt 0:00:08]} Rb8 {[%emt 0:00:17]} 47. a4 {[%emt 0:00:25]} d3 {[%emt 0:01:21]} 48. Bxd3 {[%emt 0:01:57]} Kd4 {[%emt 0:00:15]} 49. Ba6 {[%emt 0:00:26]} e4 {[%emt 0:01:14]} 50. Kf2 {[%emt 0:00:21]} Be5 {[%emt 0:03:07]} 51. Rc1 {[%emt 0:01:53]} Rg8 {[%emt 0:01:26]} 52. Rc4+ {[%emt 0:01:10]} Kd5 {[%emt 0:00:42]} 53. Rc8 {[%emt 0:00:09]} Bxg3+ {[%emt 0:00:31]} 54. Ke3 {[%emt 0:00:53]} Bf2+ {[%emt 0:05:29]} 55. Kxf2 {[%emt 0:00:19]} Rg2+ {[%emt 0:00:11]} 56. Ke3 Kd6 57. Bc4 Ke5 58. Ba6 Rg8 59. Bc4 {Kd5} 1-0

[Event "14th Vandoeuvre Open 2018"]
[Site "?"]
[Date "2018.01.04"]
[Round "6"]
[White "Oney, Remel"]
[Black "Comte, Elise"]
[Result "1/2-1/2"]
[ECO "A48"]
[WhiteElo "1828"]
[BlackElo "1722"]
[PlyCount "103"]
[EventDate "2018.??.??"]
[EventType "swiss"]
[EventCountry "FRA"]
[SourceTitle "Vandoeuvre"]
[TimeControl "5400+30"]
[WhiteClock "0:01:14"]
[BlackClock "0:01:38"]

1. d4 {[%emt 0:01:30]} Nf6 {[%emt 0:00:00]} 2. Bf4 {[%emt 0:01:21]} g6 {[%emt 0:01:14]} 3. Nf3 {[%emt 0:00:09]} Bg7 {[%emt 0:00:21]} 4. e3 {[%emt 0:00:18]} O-O {[%emt 0:00:29]} 5. h3 {[%emt 0:00:56]} d6 {[%emt 0:02:48]} 6. Be2 {[%emt 0:00:38]} Nfd7 {[%emt 0:01:05]} 7. c3 {[%emt 0:02:44]} e5 {[%emt 0:00:25]} 8. Bh2 {[%emt 0:02:19]} Nc6 {[%emt 0:07:04]} 9. O-O {[%emt 0:01:21]} f5 {[%emt 0:03:57]} 10. Na3 {[%emt 0:14:06]} a6 {[%emt 0:04:36]} 11. Qb3+ {[%emt 0:05:10]} Kh8 {[%emt 0:00:50]} 12. Rad1 {[%emt 0:00:32]} Qf6 {[%emt 0:10:39]} 13. Nc4 {[%emt 0:06:12]} e4 {[%emt 0:16:33]} 14. Ne1 {[%emt 0:00:39]} Bh6 {[%emt 0:03:19]} 15. Nc2 {[%emt 0:08:54]} Qg7 {[%emt 0:07:25]} 16. d5 {[%emt 0:08:58]} Nce5 {[%emt 0:01:22]} 17. Nxe5 {[%emt 0:02:49]} Nxe5 {[%emt 0:00:50]} 18. c4 {[%emt 0:04:07]} b6 {[%emt 0:03:31]} 19. Nd4 {[%emt 0:01:08]} g5 {[%emt 0:02:04]} 20. Bxe5 {[%emt 0:09:24]} Qxe5 {[%emt 0:03:00]} 21. Nc6 {[%emt 0:00:10]} Qf6 {[%emt 0:02:11]} 22. f3 {[%emt 0:07:48]} exf3 {[%emt 0:06:56]} 23. Rxf3 {[%emt 0:02:03]} Qg7 {[%emt 0:01:28]} 24. Rdf1 {[%emt 0:03:19]} Bd7 {[%emt 0:02:11]} 25. Nd4 {[%emt 0:00:39]} f4 {[%emt 0:01:09]} 26. Ne6 {[%emt 0:01:14]} Bxe6 {[%emt 0:01:55]} 27. dxe6 {[%emt 0:00:01]} Rfe8 {[%emt 0:01:54]} 28. exf4 {[%emt 0:02:15]} gxf4 {[%emt 0:00:40]} 29. Qc3 {[%emt 0:02:21]} Rxe6 {[%emt 0:02:26]} 30. Qxg7+ {[%emt 0:01:24]} Kxg7 {[%emt 0:03:22]} 31. Bd3 {[%emt 0:01:48]} Rae8 {[%emt 0:02:33]} 32. g3 {[%emt 0:00:20]} R8e7 {[%emt 0:01:13]} 33. gxf4 {[%emt 0:00:36]} Re3 {[%emt 0:00:39]} 34. f5 {[%emt 0:02:38]} Kf6 {[%emt 0:00:57]} 35. Kh2 Bf4+ {[%emt 0:02:45]} 36. Kh1 {[%emt 0:05:15]} Bg5 {[%emt 0:00:41]} 37. Kh2 {[%emt 0:00:52]} Rxf3 {[%emt 0:01:09]} 38. Rxf3 Re1 39. Kg3 {[%emt 0:01:44]} a5 {[%emt 0:01:35]} 40. b3 {[%emt 0:00:57]} Rd1 {[%emt 0:00:57]} 41. a4 {[%emt 0:00:23]} Rd2 {[%emt 0:00:31]} 42. Be4 {[%emt 0:00:27]} Rb2 {[%emt 0:00:33]} 43. Bd5 {[%emt 0:00:39]} h5 {[%emt 0:00:37]} 44. h4 {[%emt 0:00:59]} Bd2 {[%emt 0:00:46]} 45. Be6 {[%emt 0:00:35]} Be1+ {[%emt 0:00:22]} 46. Kh3 {[%emt 0:00:30]} Re2 {[%emt 0:00:27]} 47. Bd5 {[%emt 0:00:23]} Re5 {[%emt 0:00:43]} 48. Rf1 {[%emt 0:00:35]} Re3+ {[%emt 0:00:36]} 49. Rf3 {[%emt 0:00:01]} Re5 {[%emt 0:00:48]} 50. Rf1 {[%emt 0:00:12]} Re3+ {[%emt 0:00:20]} 51. Rf3 {[%emt 0:00:43]} Re5 {[%emt 0:00:20]} 52. Rf1 {[%emt 0:00:16]} 1/2-1/2

[Event "14th Vandoeuvre Open 2018"]
[Site "?"]
[Date "2018.01.05"]
[Round "8"]
[White "Schmitt, Axel"]
[Black "Grandmougin, Olivier"]
[Result "1/2-1/2"]
[ECO "C00"]
[WhiteElo "2323"]
[BlackElo "1904"]
[PlyCount "102"]
[EventDate "2018.??.??"]
[EventType "swiss"]
[EventCountry "FRA"]
[SourceTitle "Vandoeuvre"]
[TimeControl "5400+30"]
[WhiteClock "0:42:40"]
[BlackClock "1:10:28"]

1. e4 {[%emt 0:00:00]} e6 {[%emt 0:02:09]} 2. Qe2 {[%emt 0:00:00]} c5 {[%emt 0:01:21]} 3. Nf3 {[%emt 0:00:00]} Nc6 {[%emt 0:00:37]} 4. g3 {[%emt 0:00:21]} d6 {[%emt 0:07:51]} 5. Bg2 {[%emt 0:00:15]} e5 {[%emt 0:01:47]} 6. O-O {[%emt 0:00:51]} Be7 {[%emt 0:01:43]} 7. d3 {[%emt 0:00:19]} f5 {[%emt 0:02:47]} 8. Ne1 {[%emt 0:03:06]} Nf6 {[%emt 0:05:35]} 9. exf5 {[%emt 0:00:37]} Bxf5 {[%emt 0:02:01]} 10. f4 {[%emt 0:02:55]} Nd4 {[%emt 0:09:14]} 11. Qd1 {[%emt 0:02:07]} Bg4 {[%emt 0:00:23]} 12. Nf3 {[%emt 0:03:12]} O-O {[%emt 0:04:24]} 13. c3 {[%emt 0:00:46]} Nxf3+ {[%emt 0:01:14]} 14. Bxf3 {[%emt 0:00:06]} Bxf3 {[%emt 0:00:33]} 15. Rxf3 {[%emt 0:00:10]} e4 {[%emt 0:02:30]} 16. dxe4 {[%emt 0:00:12]} d5 {[%emt 0:00:47]} 17. exd5 {[%emt 0:01:08]} Qxd5 {[%emt 0:01:00]} 18. Qxd5+ {[%emt 0:03:55]} Nxd5 {[%emt 0:03:00]} 19. Na3 {[%emt 0:00:26]} Rad8 {[%emt 0:00:54]} 20. Rf1 {[%emt 0:09:06]} a6 {[%emt 0:07:30]} 21. Bd2 b5 22. Rad1 Bf6 23. Bc1 Rfe8 24. Nc2 Nb6 25. Ne3 c4 26. Rxd8 Rxd8 27. Rd1 Na4 28. Rxd8+ Bxd8 29. Nd5 Nc5 30. Be3 Nd3 31. b3 Kf7 32. f5 g6 33. g4 h5 34. h3 hxg4 35. hxg4 Ne5 36. fxg6+ Kxg6 37. Kf1 Nxg4 38. Bd4 Kf5 39. Nb4 a5 40. Nc6 Bc7 41. Na7 cxb3 42. axb3 b4 43. cxb4 axb4 44. Bc5 Ke4 45. Bxb4 Ne3+ 46. Ke2 Nc2 47. Bc3 Nd4+ 48. Bxd4 Kxd4 49. Nb5+ Kc5 50. Nxc7 Kb4 51. Kd3 Kxb3 1/2-1/2

[Event "14th Vandoeuvre Open 2018"]
[Site "?"]
[Date "2018.01.05"]
[Round "8"]
[White "Obert, Julien"]
[Black "Mergen, Bat"]
[Result "*"]
[ECO "B20"]
[WhiteElo "1923"]
[BlackElo "1852"]
[PlyCount "28"]
[EventDate "2018.??.??"]
[EventType "swiss"]
[EventCountry "FRA"]
[SourceTitle "Vandoeuvre"]
[TimeControl "5400+30"]
[WhiteClock "0:56:40"]
[BlackClock "0:41:16"]

1. e4 {[%emt 0:00:00]} c5 {[%emt 0:01:00]} 2. a3 {[%emt 0:00:16]} a6 {[%emt 0:00:56]} 3. b4 {[%emt 0:00:47]} e6 {[%emt 0:03:20]} 4. bxc5 {[%emt 0:02:08]} Bxc5 {[%emt 0:01:36]} 5. d4 {[%emt 0:00:25]} Ba7 {[%emt 0:00:24]} 6. Nf3 {[%emt 0:01:07]} Ne7 {[%emt 0:01:24]} 7. Bd3 {[%emt 0:02:47]} Nbc6 {[%emt 0:00:44]} 8. c3 {[%emt 0:03:17]} Ng6 {[%emt 0:01:37]} 9. Be3 {[%emt 0:04:59]} d6 {[%emt 0:01:19]} 10. Nbd2 {[%emt 0:00:58]} O-O {[%emt 0:03:40]} 11. O-O {[%emt 0:20:00]} e5 {[%emt 0:04:01]} 12. Rb1 {[%emt 0:02:34]} b6 {[%emt 0:13:05]} 13. Re1 {[%emt 0:06:55]} Nce7 {[%emt 0:02:53]} 14. Nf1 {[%emt 0:09:31]} b5 {[%emt 0:04:21]} *

[Event "14th Vandoeuvre Open 2018"]
[Site "?"]
[Date "2018.01.05"]
[Round "8"]
[White "Riou Durand, Lionel"]
[Black "Grandmougin, Olivier"]
[Result "0-1"]
[ECO "C09"]
[WhiteElo "1898"]
[BlackElo "1904"]
[PlyCount "58"]
[EventDate "2018.??.??"]
[EventType "swiss"]
[EventCountry "FRA"]
[SourceTitle "Vandoeuvre"]
[TimeControl "5400+30"]
[WhiteClock "0:35:54"]
[BlackClock "0:10:00"]

1. e4 {[%emt 0:03:17]} e6 {[%emt 0:00:00]} 2. d4 {[%emt 0:00:07]} d5 {[%emt 0:00:00]} 3. Nd2 {[%emt 0:00:10]} c5 {[%emt 0:00:19]} 4. exd5 {[%emt 0:00:04]} exd5 {[%emt 0:00:29]} 5. Ngf3 {[%emt 0:00:21]} Nc6 {[%emt 0:00:47]} 6. Bb5 {[%emt 0:00:12]} Bd6 {[%emt 0:00:16]} 7. dxc5 {[%emt 0:00:20]} Bxc5 {[%emt 0:00:02]} 8. O-O {[%emt 0:00:12]} Nge7 {[%emt 0:00:06]} 9. Re1 {[%emt 0:00:14]} O-O {[%emt 0:00:23]} 10. Nb3 {[%emt 0:00:26]} Bd6 {[%emt 0:02:22]} 11. h3 {[%emt 0:00:08]} Bf5 {[%emt 0:07:38]} 12. Bd3 {[%emt 0:00:07]} Qd7 {[%emt 0:01:17]} 13. c3 {[%emt 0:07:04]} Rad8 {[%emt 0:04:21]} 14. Be3 {[%emt 0:02:11]} Bb8 {[%emt 0:03:13]} 15. Nbd4 {[%emt 0:04:13]} Be4 {[%emt 0:13:54]} 16. Ng5 {[%emt 0:05:59]} Qd6 {[%emt 0:06:03]} 17. Ndf3 {[%emt 0:09:52]} Qg6 {[%emt 0:02:22]} 18. Nh4 {[%emt 0:00:47]} Qd6 {[%emt 0:01:28]} 19. Bxe4 {[%emt 0:09:04]} Qh2+ {[%emt 0:02:18]} 20. Kf1 {[%emt 0:00:07]} dxe4 {[%emt 0:00:07]} 21. Qg4 {[%emt 0:00:38]} h6 {[%emt 0:05:54]} 22. Qxe4 {[%emt 0:33:30]} hxg5 {[%emt 0:05:18]} 23. Nf3 {[%emt 0:00:13]} Qd6 {[%emt 0:02:21]} 24. Nxg5 {[%emt 0:02:35]} Qg6 {[%emt 0:00:41]} 25. Qa4 {[%emt 0:01:04]} Nd5 {[%emt 0:02:05]} 26. Ne4 {[%emt 0:04:36]} Rfe8 {[%emt 0:03:00]} 27. Bg5 {[%emt 0:02:16]} Rxe4 {[%emt 0:01:23]} 28. Rxe4 {[%emt 0:01:27]} Qxg5 {[%emt 0:00:16]} 29. Qb5 {[%emt 0:03:16]} Ne3+ {[%emt 0:00:13]} 0-1

[Event "14th Vandoeuvre Open 2018"]
[Site "?"]
[Date "2018.01.05"]
[Round "8"]
[White "Budak, Rezan"]
[Black "Mergen, Bat"]
[Result "0-1"]
[ECO "B24"]
[WhiteElo "1870"]
[BlackElo "1852"]
[PlyCount "148"]
[EventDate "2018.??.??"]
[EventType "swiss"]
[EventCountry "FRA"]
[SourceTitle "Vandoeuvre"]
[TimeControl "5400+30"]
[WhiteClock "0:02:28"]
[BlackClock "0:01:02"]

1. e4 {[%emt 0:11:31]} c5 {[%emt 0:00:00]} 2. Nc3 {[%emt 0:00:13]} Nc6 {[%emt 0:00:00]} 3. Bb5 {[%emt 0:00:29]} Nd4 {[%emt 0:00:13]} 4. Bc4 {[%emt 0:01:49]} e6 {[%emt 0:01:03]} 5. Nge2 {[%emt 0:01:11]} g6 {[%emt 0:02:10]} 6. Nxd4 {[%emt 0:02:06]} cxd4 {[%emt 0:00:08]} 7. Ne2 {[%emt 0:00:09]} Bg7 {[%emt 0:00:21]} 8. O-O {[%emt 0:00:25]} Ne7 {[%emt 0:01:58]} 9. d3 {[%emt 0:00:45]} d5 {[%emt 0:03:49]} 10. Bb3 {[%emt 0:00:18]} dxe4 {[%emt 0:00:24]} 11. dxe4 {[%emt 0:00:07]} Nc6 {[%emt 0:01:15]} 12. f4 {[%emt 0:03:06]} O-O {[%emt 0:10:39]} 13. a3 {[%emt 0:03:34]} e5 {[%emt 0:03:17]} 14. Qd3 {[%emt 0:06:46]} exf4 {[%emt 0:05:58]} 15. Bxf4 {[%emt 0:00:34]} Be6 {[%emt 0:00:59]} 16. Rad1 {[%emt 0:11:53]} Bxb3 {[%emt 0:01:23]} 17. Qxb3 {[%emt 0:00:47]} Qe7 {[%emt 0:00:09]} 18. Ng3 {[%emt 0:03:27]} Rad8 {[%emt 0:02:42]} 19. Rfe1 {[%emt 0:02:47]} Rd7 {[%emt 0:05:37]} 20. Nf1 {[%emt 0:06:04]} Rfd8 {[%emt 0:09:19]} 21. Qd3 {[%emt 0:01:50]} h5 {[%emt 0:08:56]} 22. Qg3 {[%emt 0:13:42]} h4 {[%emt 0:01:03]} 23. Qg4 {[%emt 0:00:24]} Ne5 {[%emt 0:00:54]} 24. Bxe5 {[%emt 0:01:00]} Bxe5 {[%emt 0:00:15]} 25. Nd2 {[%emt 0:00:25]} d3 {[%emt 0:02:15]} 26. c3 {[%emt 0:00:16]} Bg7 {[%emt 0:09:02]} 27. Nf3 {[%emt 0:01:01]} Qc5+ {[%emt 0:01:17]} 28. Kf1 {[%emt 0:00:02]} d2 {[%emt 0:00:49]} 29. Re2 {[%emt 0:01:01]} Qb5 {[%emt 0:01:38]} 30. Qxh4 {[%emt 0:19:48]} Qxb2 {[%emt 0:01:12]} 31. Rdxd2 {[%emt 0:00:33]} Rxd2 {[%emt 0:00:24]} 32. Qxd8+ {[%emt 0:00:14]} Rxd8 {[%emt 0:01:25]} 33. Rxb2 {[%emt 0:00:08]} b6 {[%emt 0:01:22]} 34. Ke2 {[%emt 0:02:19]} Bxc3 {[%emt 0:00:52]} 35. Rc2 {[%emt 0:00:09]} Ba5 {[%emt 0:03:08]} 36. Rc7 {[%emt 0:00:15]} a6 {[%emt 0:00:58]} 37. Ng5 {[%emt 0:00:24]} Rd2+ {[%emt 0:01:21]} 38. Kf1 {[%emt 0:00:26]} f6 {[%emt 0:05:02]} 39. Rc8+ {[%emt 0:00:19]} Kg7 {[%emt 0:00:45]} 40. Ne6+ {[%emt 0:00:52]} Kf7 {[%emt 0:00:33]} 41. Nf4 {[%emt 0:00:20]} Rd7 {[%emt 0:07:52]} 42. Rc6 {[%emt 0:00:32]} Re7 {[%emt 0:00:40]} 43. Nd5 {[%emt 0:01:21]} Re6 {[%emt 0:00:38]} 44. Rc7+ {[%emt 0:03:13]} Kf8 {[%emt 0:00:51]} 45. Rc4 {[%emt 0:00:37]} b5 {[%emt 0:02:17]} 46. Rd4 {[%emt 0:02:13]} g5 {[%emt 0:00:50]} 47. g4 {[%emt 0:00:46]} Rd6 {[%emt 0:02:36]} 48. Rd3 {[%emt 0:00:38]} Kf7 {[%emt 0:00:37]} 49. Ke2 {[%emt 0:00:30]} Ke6 {[%emt 0:00:20]} 50. Ke3 {[%emt 0:01:01]} Ke5 {[%emt 0:00:20]} 51. Rb3 {[%emt 0:00:34]} Rc6 {[%emt 0:00:50]} 52. Ne7 {[%emt 0:00:30]} Bb6+ {[%emt 0:01:09]} 53. Kf3 {[%emt 0:00:21]} Rc4 {[%emt 0:00:41]} 54. Rd3 {[%emt 0:00:40]} Bd4 {[%emt 0:01:58]} 55. Nd5 {[%emt 0:00:22]} a5 {[%emt 0:00:28]} 56. Rb3 {[%emt 0:00:16]} Rc5 {[%emt 0:00:19]} 57. Ne7 {[%emt 0:00:29]} Rc3+ {[%emt 0:00:24]} 58. Rxc3 {[%emt 0:00:20]} Bxc3 {[%emt 0:00:03]} 59. Ke3 {[%emt 0:00:56]} b4 {[%emt 0:01:02]} 60. axb4 {[%emt 0:00:37]} axb4 {[%emt 0:00:23]} 61. Nc6+ {[%emt 0:00:16]} Kd6 {[%emt 0:00:16]} 62. Na5 {[%emt 0:00:14]} Kc5 {[%emt 0:00:18]} 63. Kd3 {[%emt 0:00:25]} Kb5 {[%emt 0:00:10]} 64. Nb3 {[%emt 0:00:44]} Kc6 {[%emt 0:00:51]} 65. Nc1 {[%emt 0:00:49]} Kd6 {[%emt 0:00:27]} 66. Ke3 {[%emt 0:00:25]} Ke5 {[%emt 0:00:15]} 67. h3 {[%emt 0:00:28]} Bd4+ {[%emt 0:00:25]} 68. Kf3 {[%emt 0:00:05]} Bc5 {[%emt 0:01:18]} 69. Nb3 {[%emt 0:00:35]} Bb6 {[%emt 0:00:30]} 70. Nd2 {[%emt 0:01:01]} Kd4 {[%emt 0:00:18]} 71. Nb1 {[%emt 0:00:25]} Kd3 {[%emt 0:00:13]} 72. h4 {[%emt 0:00:37]} gxh4 {[%emt 0:00:03]} 73. g5 {[%emt 0:00:23]} fxg5 {[%emt 0:00:10]} 74. e5 {[%emt 0:00:06]} h3 {[%emt 0:00:25]} 0-1

[Event "14th Vandoeuvre Open 2018"]
[Site "?"]
[Date "2018.01.05"]
[Round "8"]
[White "Oney, Remel"]
[Black "Obert, Julien"]
[Result "0-1"]
[ECO "A45"]
[WhiteElo "1828"]
[BlackElo "1923"]
[PlyCount "157"]
[EventDate "2018.??.??"]
[EventType "swiss"]
[EventCountry "FRA"]
[SourceTitle "Vandoeuvre"]
[TimeControl "5400+30"]
[WhiteClock "0:01:49"]
[BlackClock "0:00:54"]

1. d4 {[%emt 0:00:00]} Nf6 {[%emt 0:00:00]} 2. Bf4 {[%emt 0:00:01]} c5 {[%emt 0:00:54]} 3. c3 {[%emt 0:01:06]} Qb6 {[%emt 0:02:02]} 4. Qc2 {[%emt 0:02:09]} cxd4 {[%emt 0:02:12]} 5. cxd4 {[%emt 0:00:08]} Nc6 {[%emt 0:00:11]} 6. e3 {[%emt 0:00:52]} d6 {[%emt 0:08:15]} 7. Nf3 {[%emt 0:05:40]} Nb4 {[%emt 0:04:44]} 8. Qe2 {[%emt 0:11:15]} Bf5 {[%emt 0:25:22]} 9. Qb5+ {[%emt 0:08:28]} Qxb5 {[%emt 0:01:27]} 10. Bxb5+ {[%emt 0:00:08]} Bd7 {[%emt 0:00:51]} 11. Bxd7+ {[%emt 0:02:23]} Kxd7 {[%emt 0:01:29]} 12. Na3 {[%emt 0:00:24]} Nd3+ {[%emt 0:04:00]} 13. Ke2 {[%emt 0:00:27]} Nxf4+ {[%emt 0:00:22]} 14. exf4 {[%emt 0:00:03]} Nd5 {[%emt 0:02:17]} 15. g3 {[%emt 0:00:51]} e6 {[%emt 0:01:02]} 16. Nc4 {[%emt 0:02:55]} Be7 {[%emt 0:01:45]} 17. Ne3 {[%emt 0:01:56]} Nb6 {[%emt 0:01:44]} 18. a4 {[%emt 0:01:18]} a5 {[%emt 0:00:35]} 19. Ra3 {[%emt 0:01:58]} Rhc8 {[%emt 0:00:50]} 20. Rb3 {[%emt 0:01:21]} Rc6 {[%emt 0:01:10]} 21. d5 {[%emt 0:02:36]} Nxd5 {[%emt 0:01:18]} 22. Nxd5 {[%emt 0:00:33]} exd5 {[%emt 0:00:23]} 23. Rxb7+ {[%emt 0:00:12]} Rc7 {[%emt 0:00:40]} 24. Rxc7+ {[%emt 0:01:37]} Kxc7 {[%emt 0:00:02]} 25. Rc1+ {[%emt 0:01:13]} Kd7 {[%emt 0:01:16]} 26. Nd4 {[%emt 0:02:40]} Rb8 {[%emt 0:06:23]} 27. Nb5 {[%emt 0:00:39]} Bd8 {[%emt 0:02:55]} 28. Rd1 {[%emt 0:08:37]} Kc6 {[%emt 0:04:51]} 29. Rc1+ {[%emt 0:02:23]} Kd7 {[%emt 0:00:33]} 30. b3 {[%emt 0:03:44]} Bb6 {[%emt 0:01:54]} 31. Kf3 {[%emt 0:02:52]} Re8 {[%emt 0:05:49]} 32. g4 {[%emt 0:02:23]} Bc5 {[%emt 0:01:08]} 33. h4 {[%emt 0:02:14]} Re4 {[%emt 0:01:53]} 34. Rd1 {[%emt 0:01:49]} Rb4 {[%emt 0:02:44]} 35. Rd3 {[%emt 0:00:26]} Kc6 {[%emt 0:01:40]} 36. g5 {[%emt 0:03:15]} g6 {[%emt 0:00:54]} 37. Kg3 {[%emt 0:06:09]} Kd7 {[%emt 0:04:35]} 38. f3 {[%emt 0:01:16]} Kc6 {[%emt 0:02:21]} 39. Kg4 {[%emt 0:03:06]} Kd7 {[%emt 0:00:39]} 40. Na3 {[%emt 0:09:15]} Rd4 {[%emt 0:00:37]} 41. Rxd4 {[%emt 0:00:57]} Bxd4 {[%emt 0:00:01]} 42. f5 {[%emt 0:03:09]} Bb2 {[%emt 0:00:32]} 43. Nb1 {[%emt 0:01:41]} d4 {[%emt 0:01:19]} 44. fxg6 {[%emt 0:00:34]} fxg6 {[%emt 0:00:15]} 45. f4 {[%emt 0:01:58]} Ke6 {[%emt 0:00:29]} 46. Nd2 {[%emt 0:01:14]} Bc3 {[%emt 0:00:49]} 47. Ne4 {[%emt 0:01:50]} Bb4 {[%emt 0:00:47]} 48. Kf3 {[%emt 0:00:56]} Kf5 {[%emt 0:01:52]} 49. Ng3+ {[%emt 0:00:01]} Ke6 {[%emt 0:00:16]} 50. Ke4 {[%emt 0:00:02]} Be1 {[%emt 0:03:05]} 51. f5+ {[%emt 0:00:22]} Kf7 {[%emt 0:01:18]} 52. fxg6+ {[%emt 0:01:04]} hxg6 {[%emt 0:00:11]} 53. Ne2 {[%emt 0:00:48]} Bxh4 {[%emt 0:00:29]} 54. Nxd4 {[%emt 0:00:35]} Bxg5 {[%emt 0:00:22]} 55. Nc6 {[%emt 0:00:43]} Bd2 {[%emt 0:00:55]} 56. Kd3 {[%emt 0:00:41]} Be1 {[%emt 0:00:19]} 57. Ke2 {[%emt 0:00:20]} Bc3 {[%emt 0:00:29]} 58. Kd3 {[%emt 0:00:11]} Be1 {[%emt 0:00:24]} 59. Ke4 {[%emt 0:00:50]} Kf6 {[%emt 0:01:00]} 60. Kf4 {[%emt 0:00:41]} g5+ {[%emt 0:00:13]} 61. Kg4 {[%emt 0:00:29]} Bc3 {[%emt 0:00:44]} 62. Na7 {[%emt 0:00:46]} d5 {[%emt 0:00:21]} 63. Nc6 {[%emt 0:00:22]} d4 {[%emt 0:00:16]} 64. Kf3 {[%emt 0:00:45]} d3 {[%emt 0:00:54]} 65. Ke3 {[%emt 0:00:22]} d2 {[%emt 0:00:24]} 66. Ke2 {[%emt 0:00:02]} Ke6 {[%emt 0:00:30]} 67. Na7 {[%emt 0:00:39]} g4 {[%emt 0:00:34]} 68. Nb5 {[%emt 0:00:12]} Bb4 {[%emt 0:00:40]} 69. Nd4+ {[%emt 0:00:12]} Kd5 {[%emt 0:00:30]} 70. Nf5 {[%emt 0:00:36]} Ke4 {[%emt 0:00:35]} 71. Ne3 {[%emt 0:00:58]} g3 {[%emt 0:00:23]} 72. Ng2 {[%emt 0:00:44]} Kd4 {[%emt 0:00:23]} 73. Ne3 {[%emt 0:00:41]} Kc3 {[%emt 0:00:13]} 74. Kf3 {[%emt 0:00:31]} Bc5 {[%emt 0:00:30]} 75. Nd5+ {[%emt 0:00:35]} Kxb3 {[%emt 0:00:29]} 76. Ke2 {[%emt 0:00:36]} Kc2 {[%emt 0:00:13]} 77. Kf3 {[%emt 0:00:28]} d1=Q+ {[%emt 0:00:10]} 78. Kxg3 {[%emt 0:00:09]} Qxd5 79. Kh3 0-1

[Event "14th Vandoeuvre Open 2018"]
[Site "?"]
[Date "2018.01.05"]
[Round "8"]
[White "Berthier, Grant"]
[Black "Oney, Remel"]
[Result "0-1"]
[ECO "D00"]
[WhiteElo "1799"]
[BlackElo "1828"]
[PlyCount "68"]
[EventDate "2018.??.??"]
[EventType "swiss"]
[EventCountry "FRA"]
[SourceTitle "Vandoeuvre"]
[TimeControl "5400+30"]
[WhiteClock "0:47:29"]
[BlackClock "0:58:41"]

1. d4 {[%emt 0:00:00]} d5 {[%emt 0:00:00]} 2. Bf4 {[%emt 0:00:07]} Nf6 {[%emt 0:00:03]} 3. e3 {[%emt 0:00:41]} c5 {[%emt 0:00:40]} 4. c3 {[%emt 0:00:18]} Nc6 {[%emt 0:00:11]} 5. Bd3 {[%emt 0:03:12]} Qb6 {[%emt 0:01:06]} 6. Qc1 {[%emt 0:00:51]} g6 {[%emt 0:06:03]} 7. h3 {[%emt 0:00:26]} Bg7 {[%emt 0:00:55]} 8. Nf3 {[%emt 0:00:31]} O-O {[%emt 0:00:26]} 9. Nbd2 {[%emt 0:02:51]} Re8 {[%emt 0:03:48]} 10. O-O {[%emt 0:02:44]} Nd7 {[%emt 0:00:26]} 11. Bc2 {[%emt 0:05:28]} e5 {[%emt 0:00:22]} 12. dxe5 {[%emt 0:00:56]} Ndxe5 {[%emt 0:00:22]} 13. Nxe5 {[%emt 0:00:25]} Nxe5 {[%emt 0:00:43]} 14. Nb3 {[%emt 0:03:09]} a5 {[%emt 0:03:17]} 15. a4 {[%emt 0:01:21]} Be6 {[%emt 0:08:16]} 16. Rd1 {[%emt 0:08:22]} Rac8 {[%emt 0:05:46]} 17. Nd2 {[%emt 0:04:59]} Red8 {[%emt 0:15:51]} 18. Bxe5 {[%emt 0:01:39]} Bxe5 {[%emt 0:00:02]} 19. Nf3 {[%emt 0:00:14]} Bg7 {[%emt 0:03:11]} 20. Bd3 {[%emt 0:02:08]} d4 {[%emt 0:01:03]} 21. Bb5 {[%emt 0:01:27]} Bb3 22. Rd2 Bh6 23. Qe1 dxe3 24. fxe3 Rxd2 25. Qxd2 Rd8 26. Qe2 c4 27. Nd4 Rd5 28. Qf3 Re5 29. Re1 Qd8 30. e4 Qe7 31. Qe2 Bf4 32. Qf3 Bd2 33. Rf1 Rxe4 34. Kh1 Rf4 0-1